bitfinex/quotes_SOLUSD_20260202
["timestamp","ask_amount","ask_price","bid_price","bid_amount"]
[1770026172476,4.5,102.95,102.91,9.09597611]
[1770026176902,4.5,102.95,102.84,99.51835546]
[1770026176903,4.5,102.91,102.85,9.09597611]
[1770026177091,13.59597611,102.91,102.86,9.09597611]
[1770026177280,4.5,102.91,102.88,9.09597611]
[1770026177600,4.5,102.92,102.88,9.09597611]
[1770026178986,13.59597611,102.92,102.87,9.09597611]
[1770026179382,27.02,102.96,102.8,48.50920699]
[1770026179383,4.5,102.89,102.8,24.51777064]
[1770026179599,4.5,102.89,102.85,9.09597611]
[1770026180704,4.5,102.92,102.88,9.09597611]
[1770026183094,31.52,102.96,102.91,9.09597611]
[1770026183293,4.5,102.96,102.91,9.09597611]
[1770026184608,4.5,102.96,102.86,24.30425692]
[1770026184609,4.5,102.96,102.93,9.09597611]
[1770026185526,6.5311358,102.97,102.93,9.09597611]
[1770026185820,11.0311358,102.97,102.93,9.09597611]
[1770026186022,13.59597611,102.96,102.91,9.09597611]
[1770026186196,4.5,102.96,102.92,9.09597611]
[1770026187397,15.62711191,102.97,102.95,9.09597611]
[1770026187398,6.5311358,102.97,102.95,9.09597611]
[1770026187702,6.5311358,102.97,102.96,9.09597611]
[1770026188092,6.5311358,102.97,102.95,9.09597611]
[1770026188611,6.5311358,102.97,102.94,9.09597611]
[1770026188815,6.5311358,102.97,102.95,9.09597611]
[1770026190920,6.5311358,102.97,102.96,9.09597611]
[1770026193017,6.5311358,102.97,102.96,70.89597611]
[1770026193217,4.7,103.01,102.98,9.09597611]
[1770026193515,0.2,103.01,102.99,9.09597611]
[1770026194813,0.2,103.01,102.98,9.09597611]
[1770026195005,0.2,103.01,102.99,9.09597611]
[1770026195700,0.2,103.01,103.0,9.09597611]
[1770026195903,0.2,103.01,102.99,9.09597611]
[1770026196106,0.2,103.01,103.0,9.09597611]
[1770026197318,0.2,103.01,102.99,9.09597611]
[1770026198410,0.2,103.01,102.96,0.28432314]
[1770026198411,0.2,103.01,103.0,9.09597611]
[1770026200117,0.2,103.01,102.96,0.28432314]
[1770026200118,0.2,103.01,102.99,9.09597611]
[1770026200615,0.2,103.01,103.0,9.09597611]
[1770026201724,0.2,103.03,103.0,9.09597611]
[1770026202018,0.2,103.03,103.02,9.09597611]
[1770026202706,0.2,103.03,103.01,9.09597611]
[1770026204421,0.2,103.03,103.0,9.09597611]
[1770026205928,0.2,103.03,103.01,9.09597611]
[1770026206120,0.2,103.03,103.02,9.09597611]
[1770026206322,0.2,103.03,103.01,9.09597611]
[1770026207713,4.7,103.03,102.98,0.28432314]
[1770026207913,4.7,103.03,103.0,9.09597611]
[1770026208213,4.7,103.03,102.98,0.28432314]
[1770026208214,0.2,103.03,103.01,9.09597611]
[1770026208933,6.48352947,103.05,103.03,9.09597611]
[1770026209118,6.48352947,103.05,103.04,9.09597611]
[1770026209716,6.48352947,103.05,103.03,9.09597611]
[1770026211330,4.5,103.04,102.99,0.28432314]
[1770026211539,4.35783843,103.03,102.94,35.4124011]
[1770026211762,9.09597611,102.97,102.94,35.4124011]
[1770026211917,13.45381454,102.97,102.94,35.4124011]
[1770026212116,4.35783843,102.97,102.94,35.4124011]
[1770026212324,4.35783843,102.97,102.93,9.09597611]
[1770026215245,4.35783843,102.94,102.87,0.28432314]
[1770026215450,4.35783843,102.94,102.9,9.09597611]
[1770026215617,4.35783843,102.94,102.91,9.09597611]
[1770026215820,4.35783843,102.97,102.93,9.09597611]
[1770026216030,4.35783843,102.97,102.94,9.09597611]
[1770026216317,4.35783843,102.97,102.93,9.09597611]
[1770026216825,4.35783843,102.97,102.94,9.09597611]
[1770026217025,4.35783843,102.97,102.93,9.09597611]
[1770026218121,4.35783843,102.97,102.86,32.33837349]
[1770026218326,4.35783843,102.94,102.9,9.09597611]
[1770026218530,4.35783843,102.94,102.89,0.28432314]
[1770026218531,4.35783843,102.94,102.89,9.36890539]
[1770026218736,4.35783843,102.93,102.88,9.36890539]
[1770026219038,4.35783843,102.96,102.91,9.08458225]
[1770026219436,4.35783843,102.96,102.9,0.28432314]
[1770026219639,4.35783843,102.95,102.91,9.08458225]
[1770026220049,4.35783843,102.95,102.87,0.28432314]
[1770026220229,4.35783843,102.94,102.91,9.08458225]
[1770026220424,4.35783843,102.96,102.9,0.28432314]
[1770026220733,4.35783843,102.95,102.91,9.08458225]
[1770026220937,4.35783843,102.95,102.9,9.36890539]
[1770026221141,4.35783843,102.94,102.9,9.08458225]
[1770026221722,4.35783843,102.95,102.9,0.28432314]
[1770026222045,4.35783843,102.95,102.91,9.08458225]
[1770026222846,4.35783843,102.95,102.9,0.28432314]
[1770026223026,4.35783843,102.95,102.91,9.08458225]
[1770026223945,4.35783843,102.95,102.91,9.36890539]
[1770026224244,9.08458225,103.04,102.93,9.08458225]
[1770026224245,4.35783843,102.98,102.93,9.08458225]
[1770026225430,4.35783843,102.97,102.93,9.08458225]
[1770026226428,4.35783843,102.99,102.92,0.28432314]
[1770026226634,4.35783843,102.93,102.88,9.36890539]
[1770026226834,4.35783843,102.93,102.89,0.28432314]
[1770026227029,4.35783843,102.93,102.89,9.36890539]
[1770026227538,4.35783843,102.92,102.87,9.36890539]
[1770026227745,4.35783843,102.92,102.88,9.08458225]
[1770026228638,4.35783843,102.92,102.88,9.36890539]
[1770026228834,4.35783843,102.93,102.89,0.28432314]
[1770026229034,4.35783843,102.94,102.9,9.08458225]
[1770026230653,4.35783843,102.94,102.9,9.36890539]
[1770026230852,4.35783843,102.96,102.92,9.36890539]
[1770026231048,4.35783843,102.96,102.92,9.08458225]
[1770026231245,4.35783843,102.96,102.91,0.28432314]
[1770026231458,4.35783843,102.96,102.92,9.08458225]
[1770026231952,4.35783843,102.97,102.93,9.08458225]
[1770026232137,4.35783843,102.96,102.92,70.88458225]
[1770026232336,4.35783843,102.96,102.92,61.8]
[1770026232833,4.35783843,102.92,102.88,0.28432314]
[1770026233057,0.28432314,102.95,102.88,0.28432314]
[1770026233058,4.35783843,102.93,102.89,9.36890539]
[1770026233230,4.35783843,102.94,102.9,9.36890539]
[1770026233440,4.35783843,102.96,102.92,9.08458225]
[1770026233637,4.35783843,102.96,102.92,61.8]
[1770026233933,4.35783843,102.96,102.86,32.33837349]
[1770026233934,4.35783843,102.94,102.9,71.16890539]
[1770026235753,4.35783843,102.94,102.9,62.08432314]
[1770026235952,4.35783843,102.94,102.9,71.16890539]
[1770026236659,4.35783843,102.94,102.9,70.88458225]
[1770026237073,4.35783843,102.94,102.9,61.8]
[1770026237265,13.44242068,102.94,102.9,61.8]
[1770026237476,4.35783843,102.93,102.9,61.8]
[1770026240161,4.35783843,102.94,102.9,61.8]
[1770026240369,4.35783843,102.94,102.9,70.88458225]
[1770026240762,4.35783843,102.94,102.9,61.8]
[1770026240965,4.35783843,102.94,102.9,70.88458225]
[1770026241270,13.44242068,102.94,102.9,61.8]
[1770026241465,4.35783843,102.93,102.9,61.8]
[1770026243067,4.35783843,102.93,102.9,70.88458225]
[1770026243473,4.35783843,102.93,102.9,61.8]
[1770026246167,4.26889324,102.93,102.87,4.24401176]
[1770026246370,4.26889324,102.91,102.87,13.32859401]
[1770026248177,9.08458225,102.93,102.87,13.32859401]
[1770026248178,4.26889324,102.92,102.88,4.24401176]
[1770026248477,4.26889324,102.92,102.88,13.32859401]
[1770026248659,4.26889324,102.93,102.89,13.32859401]
[1770026251264,4.26889324,102.99,102.93,4.24401176]
[1770026251461,4.26889324,102.97,102.93,4.24401176]
[1770026251656,4.26889324,102.95,102.91,13.32859401]
[1770026251861,4.26889324,102.95,102.91,4.24401176]
[1770026252062,4.26889324,102.95,102.91,13.32859401]
[1770026253480,4.26889324,102.95,102.91,4.24401176]
[1770026253687,13.35347549,102.96,102.91,4.24401176]
[1770026253872,4.26889324,102.95,102.91,4.24401176]
[1770026254065,4.26889324,102.97,102.93,4.24401176]
[1770026254270,4.26889324,102.97,102.9,27.28432314]
[1770026254271,4.26889324,102.99,102.94,4.24401176]
[1770026254579,4.26889324,102.98,102.94,13.32859401]
[1770026255182,4.26889324,102.98,102.94,4.24401176]
[1770026255380,4.26889324,102.97,102.93,4.24401176]
[1770026257591,13.35347549,102.98,102.94,4.24401176]
[1770026257779,4.15300025,103.0,102.95,4.32268375]
[1770026258084,13.2375825,102.99,102.95,4.32268375]
[1770026259374,4.15300025,102.99,102.95,4.32268375]
[1770026259583,9.08458225,103.0,102.96,4.32268375]
[1770026259980,13.2375825,103.0,102.96,4.32268375]
[1770026260692,4.15300025,102.97,102.94,48.44216157]
[1770026260878,13.2375825,102.97,102.94,48.44216157]
[1770026261188,4.15300025,102.96,102.94,48.44216157]
[1770026261384,4.15300025,102.96,102.93,4.32268375]
[1770026261582,13.2375825,102.97,102.93,4.32268375]
[1770026262991,4.29516182,102.98,102.93,4.32268375]
[1770026263191,4.15300025,102.97,102.93,4.32268375]
[1770026265988,9.08458225,102.96,102.91,4.32268375]
[1770026266291,13.2375825,102.95,102.91,4.32268375]
[1770026266468,13.2375825,102.97,102.92,4.32268375]
[1770026266878,13.2375825,102.96,102.92,4.32268375]
[1770026270192,13.38587891,102.98,102.94,4.2571489]
[1770026270380,4.30129666,102.98,102.94,4.2571489]
[1770026270887,4.15913509,102.97,102.94,4.2571489]
[1770026271195,4.15913509,102.95,102.91,4.2571489]
[1770026273372,4.30129666,102.97,102.92,4.2571489]
[1770026273572,13.38587891,102.97,102.92,4.2571489]
[1770026274480,9.08458225,102.96,102.92,4.2571489]
[1770026274893,13.24371734,102.96,102.92,4.2571489]
[1770026275088,4.15913509,102.95,102.92,4.2571489]
[1770026276396,13.24371734,102.95,102.92,4.2571489]
[1770026276599,4.15913509,102.95,102.91,4.2571489]
[1770026276897,13.24371734,102.95,102.91,52.69931047]
[1770026277684,13.24371734,102.94,102.91,48.44216157]
[1770026278085,13.24371734,102.94,102.9,4.2571489]
[1770026280397,13.24633514,102.94,102.9,4.2571489]
[1770026280789,4.15913509,102.95,102.9,4.2571489]
[1770026281088,13.24633514,102.95,102.9,4.2571489]
[1770026281287,4.15913509,102.95,102.91,4.2571489]
[1770026281592,13.38849671,102.96,102.92,4.2571489]
[1770026281780,4.15913509,102.96,102.92,4.2571489]
[1770026281980,13.24633514,102.97,102.93,4.2571489]
[1770026282201,4.15913509,102.97,102.93,4.2571489]
[1770026282493,13.24633514,102.99,102.94,4.2571489]
[1770026283098,13.24633514,102.95,102.91,4.2571489]
[1770026283282,36.08720005,103.04,102.89,4.2571489]
[1770026283283,13.24633514,102.94,102.89,4.2571489]
[1770026283597,9.08720005,102.93,102.89,4.2571489]
[1770026283798,13.24633514,102.94,102.89,4.2571489]
[1770026284180,9.08720005,102.93,102.89,4.2571489]
[1770026284379,4.15913509,102.96,102.92,4.2571489]
[1770026284597,9.22936162,102.97,102.93,4.2571489]
[1770026284779,13.24633514,102.97,102.93,4.2571489]
[1770026284980,4.15913509,102.97,102.93,4.2571489]
[1770026285786,13.24633514,102.99,102.94,4.2571489]
[1770026286700,9.08720005,102.98,102.94,4.2571489]
[1770026287085,13.24633514,102.98,102.94,4.2571489]
[1770026287577,4.15913509,102.98,102.94,13.34434895]
[1770026287775,4.15913509,102.98,102.94,4.2571489]
[1770026287985,13.24633514,102.98,102.94,4.2571489]
[1770026289089,4.15913509,102.98,102.94,4.2571489]
[1770026289283,13.24633514,102.98,102.94,4.2571489]
[1770026290681,4.31426004,102.99,102.94,4.2571489]
[1770026290882,4.31426004,102.98,102.94,4.08158027]
[1770026292085,13.40146009,102.97,102.94,4.08158027]
[1770026292284,4.31426004,102.97,102.94,4.08158027]
[1770026292801,4.31426004,102.96,102.92,4.08158027]
[1770026292995,13.40146009,102.96,102.92,4.08158027]
[1770026296291,9.08720005,102.95,102.92,4.08158027]
[1770026296496,13.40146009,102.96,102.92,4.08158027]
[1770026296798,4.31426004,102.96,102.92,4.08158027]
[1770026296983,13.40146009,102.96,102.92,4.08158027]
[1770026297597,4.31426004,102.96,102.92,4.08158027]
[1770026297802,13.68578323,102.97,102.92,4.08158027]
[1770026298909,13.40146009,102.97,102.92,4.08158027]
[1770026299119,4.31426004,102.97,102.93,4.08158027]
[1770026299796,13.40146009,102.98,102.93,4.08158027]
[1770026300722,9.08720005,102.97,102.93,4.08158027]
[1770026301096,13.40146009,102.96,102.93,4.08158027]
[1770026302406,7.94742568,102.96,102.93,4.08158027]
[1770026303111,4.31426004,102.96,102.93,4.08158027]
[1770026304009,7.94742568,102.96,102.93,4.08158027]
[1770026304192,4.31426004,102.96,102.92,4.08158027]
[1770026304513,4.31426004,102.95,102.91,4.08158027]
[1770026305206,7.94742568,102.95,102.91,4.08158027]
[1770026306511,4.31426004,102.94,102.91,4.08158027]
[1770026306811,4.31426004,102.95,102.91,4.08158027]
[1770026307018,0.28432314,102.97,102.91,4.08158027]
[1770026307019,7.94742568,102.97,102.93,4.08158027]
[1770026307220,4.31426004,102.96,102.93,4.08158027]
[1770026310101,4.31426004,102.96,102.92,4.08158027]
[1770026311521,4.31426004,102.95,102.92,4.08158027]
[1770026311730,4.31426004,102.95,102.91,52.52374184]
[1770026311904,4.31426004,102.97,102.93,4.08158027]
[1770026312223,4.31426004,102.97,102.93,48.44216157]
[1770026313609,4.31426004,102.97,102.93,52.52374184]
[1770026315207,4.31426004,102.97,102.94,4.08158027]
[1770026315409,4.31426004,102.97,102.94,52.52374184]
[1770026315603,7.94742568,102.97,102.94,52.52374184]
[1770026315917,7.94742568,102.97,102.94,48.44216157]
[1770026316531,4.31426004,102.97,102.94,48.44216157]
[1770026316820,3.63316564,102.97,102.94,48.44216157]
[1770026317121,7.94742568,102.97,102.94,48.44216157]
[1770026317300,3.63316564,102.97,102.94,48.44216157]
[1770026317506,4.31426004,102.95,102.94,48.39858318]
[1770026318320,4.31426004,102.95,102.91,4.47811121]
[1770026318321,4.27111743,102.94,102.91,4.47811121]
[1770026318503,7.90428307,102.94,102.91,4.47811121]
[1770026319122,7.90428307,102.93,102.89,4.47811121]
[1770026321823,4.27111743,102.95,102.91,4.47811121]
[1770026323226,7.90428307,102.95,102.91,4.47811121]
[1770026324117,4.27111743,102.95,102.91,4.47811121]
[1770026324316,7.90428307,102.96,102.91,4.47811121]
[1770026324503,7.90428307,102.96,102.92,4.47811121]
[1770026325008,4.27111743,102.95,102.92,52.87669439]
[1770026326227,7.90428307,102.95,102.92,52.87669439]
[1770026327125,7.90428307,102.94,102.92,48.39858318]
[1770026327727,4.27111743,102.94,102.92,48.39858318]
[1770026327915,3.63316564,102.95,102.92,48.39858318]
[1770026328117,7.72868752,102.95,102.92,48.39858318]
[1770026329607,7.72868752,102.95,102.91,4.47811121]
[1770026331129,4.09552188,102.93,102.9,4.23498676]
[1770026331324,7.72868752,102.93,102.9,66.03498676]
[1770026332632,4.09552188,102.93,102.9,66.03498676]
[1770026333232,7.72868752,102.93,102.9,4.23498676]
[1770026336014,27.0,102.96,102.87,66.15554138]
[1770026336015,4.0835231,102.91,102.87,66.15554138]
[1770026336322,4.0835231,102.91,102.87,4.35554138]
[1770026336717,7.71668874,102.91,102.87,4.35554138]
[1770026337128,3.63316564,102.95,102.87,4.35554138]
[1770026337129,7.71668874,102.9,102.87,4.35554138]
[1770026339739,7.87166142,102.89,102.86,36.49120357]
[1770026339919,3.63316564,102.89,102.87,4.15283008]
[1770026340321,3.63316564,102.88,102.83,61.8]
[1770026340531,3.63316564,102.87,102.83,61.8]
[1770026340721,7.87166142,102.86,102.81,3.73316564]
[1770026340921,3.63316564,102.84,102.81,0.1]
[1770026341220,7.87166142,102.85,102.81,0.1]
[1770026341419,3.63316564,102.84,102.81,0.1]
[1770026342048,3.63316564,102.86,102.81,3.73316564]
[1770026342230,4.52281892,102.87,102.81,3.73316564]
[1770026342231,7.87166142,102.87,102.81,3.73316564]
[1770026342416,7.87814813,102.87,102.83,4.15283008]
[1770026342617,3.63965235,102.86,102.82,4.15283008]
[1770026343933,7.87814813,102.87,102.82,4.15283008]
[1770026344753,4.23849578,102.89,102.82,4.15283008]
[1770026344927,7.87814813,102.89,102.84,4.15283008]
[1770026345244,7.87814813,102.89,102.85,4.15283008]
[1770026345743,4.23849578,102.91,102.86,4.15283008]
[1770026345944,7.87814813,102.91,102.87,4.15283008]
[1770026346626,7.87814813,102.91,102.86,3.63965235]
[1770026346627,7.87814813,102.93,102.89,4.15283008]
[1770026347327,7.87814813,102.9,102.86,4.15283008]
[1770026347522,3.63965235,102.9,102.86,4.15283008]
[1770026347734,7.87814813,102.91,102.86,4.15283008]
[1770026347942,4.23849578,102.91,102.87,4.09217682]
[1770026348139,7.87814813,102.91,102.87,4.09217682]
[1770026348528,8.03556407,102.9,102.85,7.73182917]
[1770026348734,8.03556407,102.9,102.86,4.09217682]
[1770026350229,8.03556407,102.89,102.86,4.09217682]
[1770026350423,8.03556407,102.87,102.84,4.09217682]
[1770026350732,8.03556407,102.88,102.84,4.09217682]
[1770026351450,4.39591172,102.87,102.84,4.09217682]
[1770026351637,8.03556407,102.86,102.82,4.09217682]
[1770026351842,4.39591172,102.86,102.83,4.09217682]
[1770026352044,4.39591172,102.87,102.83,4.09217682]
[1770026352942,8.03556407,102.87,102.83,4.09217682]
[1770026353251,4.39591172,102.87,102.83,4.09217682]
[1770026354056,4.39591172,102.89,102.84,3.63965235]
[1770026354252,4.39591172,102.88,102.84,4.09217682]
[1770026354474,8.03556407,102.89,102.85,4.09217682]
[1770026356050,8.03556407,102.87,102.82,4.09217682]
[1770026356254,8.03556407,102.87,102.83,4.09217682]
[1770026356861,3.63965235,102.87,102.83,4.09217682]
[1770026357059,8.03556407,102.88,102.84,4.09217682]
[1770026357366,4.39591172,102.91,102.87,4.09217682]
[1770026357560,4.39591172,102.91,102.87,7.73182917]
[1770026357945,4.39591172,102.92,102.88,4.09217682]
[1770026358438,8.03556407,102.92,102.88,4.09217682]
[1770026359162,8.03556407,102.93,102.89,4.09217682]
[1770026359580,4.39591172,102.92,102.89,4.09217682]
[1770026360079,4.39591172,102.93,102.9,4.09217682]
[1770026361468,4.39591172,102.92,102.89,4.09217682]
[1770026361667,4.39591172,102.92,102.88,4.09217682]
[1770026361858,9.08731841,102.93,102.89,4.09217682]
[1770026362047,13.76755327,102.94,102.89,4.09217682]
[1770026362364,4.39591172,102.93,102.89,13.17949523]
[1770026362951,4.39591172,102.93,102.9,4.09217682]
[1770026364752,4.39591172,102.93,102.9,13.17949523]
[1770026367371,4.39591172,102.93,102.9,4.09217682]
[1770026367755,4.39591172,102.93,102.9,65.89217682]
[1770026368472,13.48323013,102.93,102.9,61.8]
[1770026368671,4.39591172,102.92,102.9,61.8]
[1770026369357,4.39591172,102.92,102.85,4.09217682]
[1770026369358,4.39591172,102.91,102.85,4.09217682]
[1770026369558,4.39591172,102.9,102.87,4.09217682]
[1770026371272,4.39591172,102.89,102.85,72.70890856]
[1770026371460,4.39591172,102.89,102.85,4.09217682]
[1770026371660,4.39591172,102.89,102.85,13.17949523]
[1770026372282,13.48323013,102.89,102.85,4.09217682]
[1770026372666,4.39591172,102.91,102.86,4.09217682]
[1770026372970,4.39591172,102.9,102.87,4.09217682]
[1770026375457,4.39591172,102.93,102.88,4.09217682]
[1770026375664,13.48323013,102.93,102.89,4.09217682]
[1770026375859,4.39591172,102.92,102.89,4.09217682]
[1770026376880,13.48323013,102.92,102.88,4.09217682]
[1770026377080,4.39591172,102.92,102.88,13.17949523]
[1770026377468,4.39591172,102.92,102.88,6.42952862]
[1770026378070,4.39591172,102.92,102.88,65.95894195]
[1770026378682,4.24180582,102.93,102.89,9.08731841]
[1770026379780,4.24180582,102.93,102.89,10.88839912]
[1770026382475,4.24180582,102.93,102.89,64.96551327]
[1770026386573,4.24180582,102.94,102.9,5.43609994]
[1770026386772,4.24180582,102.93,102.89,64.96551327]
[1770026387988,4.24180582,102.93,102.89,61.33049404]
[1770026388584,0.14216157,102.95,102.89,59.52941333]
[1770026388585,4.12526727,102.91,102.89,59.52941333]
[1770026396006,4.12526727,102.95,102.91,1.80108071]
[1770026396301,4.12526727,102.95,102.91,5.43609994]
[1770026396501,4.12526727,102.95,102.92,3.63501923]
[1770026396704,4.12526727,102.95,102.91,3.63501923]
[1770026398100,4.12526727,102.95,102.92,3.63501923]
[1770026398908,4.12526727,102.95,102.93,3.63501923]
[1770026399208,4.12526727,102.95,102.92,5.1517768]
[1770026399385,4.12526727,102.97,102.93,5.1517768]
[1770026400101,4.12526727,102.97,102.93,3.63501923]
[1770026400710,3.63501923,102.98,102.9,3.63501923]
[1770026400711,31.14526727,102.99,102.94,1.51675757]
[1770026400897,4.12526727,103.02,102.98,5.1517768]
[1770026401086,4.32526727,103.03,102.99,5.1517768]
[1770026401285,0.2,103.03,102.99,3.63501923]
[1770026401505,4.12526727,103.02,102.98,5.1517768]
[1770026401802,4.12526727,103.02,102.97,1.51675757]
[1770026402007,4.12526727,103.0,102.96,3.63501923]
[1770026402208,4.12526727,103.0,102.95,5.1517768]
[1770026402609,4.12526727,103.0,102.96,3.63501923]
[1770026403007,4.12526727,103.0,102.97,5.1517768]
[1770026403308,4.12526727,103.01,102.97,5.1517768]
[1770026403895,4.12526727,103.0,102.95,5.1517768]
[1770026404514,4.12526727,103.0,102.96,3.6301695]
[1770026405007,4.12526727,102.99,102.95,5.14692707]
[1770026405513,4.12526727,102.99,102.96,3.6301695]
[1770026405811,4.12526727,102.98,102.94,5.14692707]
[1770026406400,4.12526727,102.98,102.95,3.6301695]
[1770026406599,4.12526727,102.98,102.94,5.14692707]
[1770026407121,4.12526727,102.98,102.94,1.51675757]
[1770026407297,4.12526727,102.98,102.95,3.6301695]
[1770026408518,4.35183037,102.99,102.95,5.14692707]
[1770026408715,27.2,103.03,102.98,5.14692707]
[1770026408716,4.35183037,103.02,102.98,5.14692707]
[1770026409211,4.35183037,103.01,102.97,3.6301695]
[1770026409412,4.35183037,103.01,102.98,3.6301695]
[1770026409604,4.35183037,103.01,102.97,5.14692707]
[1770026411422,4.55183037,103.03,103.0,3.6301695]
[1770026411999,4.55183037,103.03,102.99,5.14692707]
[1770026412201,4.55183037,103.03,102.98,5.14692707]
[1770026413008,4.55183037,103.03,102.99,3.6301695]
[1770026413826,4.35183037,103.01,102.95,1.80108071]
[1770026414131,4.35183037,103.01,102.97,3.6301695]
[1770026414929,4.35183037,103.01,102.97,5.14692707]
[1770026415424,4.35183037,103.01,102.97,5.12108846]
[1770026415617,4.35183037,103.01,102.98,3.6301695]
[1770026417630,4.55183037,103.03,102.98,1.49091896]
[1770026417829,4.55183037,103.03,102.99,5.12108846]
[1770026418035,4.55183037,103.03,103.0,5.12108846]
[1770026418415,4.55183037,103.03,103.0,3.6301695]
[1770026418908,0.2,103.03,103.0,5.12108846]
[1770026419129,0.2,103.03,103.01,3.6301695]
[1770026419726,0.2,103.03,103.0,5.12108846]
[1770026421612,4.55183037,103.03,103.0,5.12108846]
[1770026421939,4.55183037,103.03,102.99,5.12108846]
[1770026422627,4.55183037,103.03,102.99,3.6301695]
[1770026423217,4.35183037,103.02,102.98,3.6301695]
[1770026423411,4.35183037,103.02,102.98,59.52941333]
[1770026423607,4.35183037,103.02,102.98,63.15958283]
[1770026423835,4.35183037,103.02,102.98,59.52941333]
[1770026424418,4.35183037,103.02,102.98,64.65050179]
[1770026424929,0.2,103.03,103.0,5.12108846]
[1770026425118,0.2,103.03,103.01,5.12108846]
[1770026425530,11.03535984,103.05,103.02,3.6301695]
[1770026427918,11.03535984,103.05,103.04,3.6301695]
[1770026427919,5.39261051,103.05,103.04,3.6301695]
[1770026428116,4.7,103.07,103.04,3.6301695]
[1770026428321,4.7,103.07,103.03,3.6301695]
[1770026431232,4.5,103.04,103.0,3.6301695]
[1770026431618,4.5,103.04,103.01,3.6301695]
[1770026432019,4.5,103.04,102.96,0.14216157]
[1770026432237,4.5,103.04,103.01,3.6301695]
[1770026434847,4.5,103.04,103.02,3.6301695]
[1770026435027,4.5,103.06,103.02,3.6301695]
[1770026435932,4.5,103.05,102.97,0.28432314]
[1770026436130,4.5,103.05,103.01,3.6301695]
[1770026436535,4.5,103.05,103.02,3.6301695]
[1770026437139,4.5,103.05,103.01,3.6301695]
[1770026439950,4.5,103.05,102.97,0.28432314]
[1770026440158,4.5,103.05,103.01,3.6301695]
[1770026441434,4.5,103.05,103.02,3.6301695]
[1770026443050,4.5,103.05,103.01,3.6301695]
[1770026443637,4.5,103.05,103.0,3.6301695]
[1770026443834,4.5,103.05,103.01,3.6301695]
[1770026445056,4.5,103.04,103.01,59.52941333]
[1770026445242,4.5,103.03,103.01,57.23600033]
[1770026445438,4.5,103.02,102.98,7.90497194]
[1770026445635,4.5,103.02,102.98,4.27480244]
[1770026446240,4.5,103.02,102.98,7.90497194]
[1770026446757,4.5,103.02,102.99,4.27480244]
[1770026447664,7.72792449,103.0,102.96,4.27480244]
[1770026447961,7.72792449,103.0,102.97,4.27480244]
[1770026447962,4.09775499,103.0,102.97,4.27480244]
[1770026448167,4.09775499,103.0,102.97,7.90497194]
[1770026448772,4.09775499,103.0,102.97,4.27480244]
[1770026450564,4.09775499,103.0,102.97,7.90497194]
[1770026450737,4.09775499,103.0,102.97,4.27480244]
[1770026450945,4.09775499,103.0,102.97,7.90497194]
[1770026451259,4.09775499,103.0,102.97,4.27480244]
[1770026451641,31.4202876,103.02,102.98,4.38970512]
[1770026451844,4.4402876,103.02,102.99,4.38970512]
[1770026453844,4.4402876,103.02,102.98,3.6301695]
[1770026453845,4.4402876,103.02,102.98,8.01987462]
[1770026454141,4.4402876,103.01,102.98,4.38970512]
[1770026454960,3.6301695,103.02,102.98,4.38970512]
[1770026455167,4.4402876,103.0,102.97,4.38970512]
[1770026455347,4.4402876,103.0,102.97,52.62570545]
[1770026455951,4.4402876,102.99,102.96,4.38970512]
[1770026456140,8.0704571,102.99,102.96,4.38970512]
[1770026457665,4.4402876,102.99,102.96,4.38970512]
[1770026460249,4.4402876,102.98,102.94,3.6301695]
[1770026460551,4.4402876,102.98,102.95,4.38970512]
[1770026460753,26.98,103.01,102.93,4.38970512]
[1770026460754,4.4402876,102.96,102.93,4.38970512]
[1770026461066,3.6301695,102.97,102.94,4.38970512]
[1770026461067,4.4402876,102.97,102.94,4.38970512]
[1770026461767,4.4402876,102.97,102.93,4.38970512]
[1770026461962,4.4402876,102.95,102.93,4.38970512]
[1770026462160,4.4402876,102.96,102.93,4.38970512]
[1770026463364,31.4402876,102.98,102.95,4.38970512]
[1770026463565,4.4402876,103.0,102.97,4.38970512]
[1770026464670,4.4402876,103.02,102.97,4.38970512]
[1770026464869,5.26857827,103.08,102.99,8.01985764]
[1770026464870,3.63015252,103.04,102.99,8.01985764]
[1770026465075,4.4402876,103.03,102.99,8.01985764]
[1770026465263,4.4402876,103.04,103.01,3.63015252]
[1770026465571,4.4402876,103.04,103.01,8.01985764]
[1770026465768,4.4402876,103.04,103.01,4.38970512]
[1770026466156,4.4402876,103.04,103.01,8.01985764]
[1770026466575,4.4402876,103.04,103.01,4.38970512]
[1770026466874,4.4402876,103.04,103.01,8.01985764]
[1770026467656,4.4402876,103.04,103.01,4.38970512]
[1770026468056,4.4402876,103.04,103.0,3.63015252]
[1770026468259,4.30195445,103.03,103.0,4.43616455]
[1770026468460,4.30195445,103.02,102.98,4.43616455]
[1770026468786,4.30195445,103.01,102.98,4.43616455]
[1770026469181,4.30195445,103.0,102.96,3.63015252]
[1770026469488,4.30195445,103.0,102.97,4.43616455]
[1770026469656,4.30195445,102.99,102.96,4.43616455]